[Event "Chessable English Open-ch 2022"]
[Site "Kenilwoth"]
[Date "2022.05.20"]
[Round "4.16"]
[White "Watson, Jacob"]
[Black "Wells, Daniel J"]
[Result "1-0"]
[ECO "B31"]
[WhiteElo "1922"]
[BlackElo "2020"]
[Annotator "TA"]
[PlyCount "101"]
[EventDate "2022.05.18"]
[EventType "swiss"]
[EventCountry "ENG"]
[SourceTitle "playchess.com"]
[Source "ChessBase"]
[SourceQuality "1"]
[TimeControl "5400+30"]

{[%evp 19,101,-21,-13,-61,-28,-33,-31,-39,-19,-16,-22,-27,-22,-27,0,0,0,0,0,0,0,-23,-17,-40,-20,-116,-104,-106,0,-39,30,33,33,27,14,0,52,16,41,51,35,25,92,11,55,55,54,39,43,42,44,44,51,0,452,366,344,352,335,0,0,0,0,0,0,0,14,8,8,8,8,0,29977,29978,29979,29980,29981,29982,29982,29983,29980,29942,29972,29972]} 1. e4 {[%emt 0:00:04]} c5 {[%emt 0:00:04]} 2. Nf3 {[%emt 0:00:12]} Nc6 {[%emt 0:00:07]} 3. Bb5 {[%emt 0:00:05]} g6 {[%emt 0:00:14]} 4. c3 {[%emt 0:00:39]} Nf6 {[%emt 0:01:00]} 5. e5 {[%emt 0:03:43]} Nd5 {[%emt 0:00:15]} 6. O-O {[%emt 0:00:26]} Bg7 {[%emt 0:02:31]} 7. d4 {[%emt 0:03:14]} cxd4 {[%emt 0:04:35]} 8. cxd4 {[%emt 0:00:25]} O-O {[%emt 0:09:32]} 9. Nc3 {[%emt 0:07:25]} Nc7 {[%emt 0:01:47]} 10. Ba4 {[%emt 0:05:42]} d6 {[%emt 0:23:34][%cal Rd6e5]} 11. Bf4 {[%emt 0:10:28] B31: Sicilian: 2...Nc6 3 Bb5 g6.} (11. Qe2 $11) 11... Bg4 {[%emt 0:06:22]} 12. Bxc6 {[%emt 0:04:28]} bxc6 {[%emt 0:00:06]} 13. h3 {[%emt 0:00:14] [#] Black is slightly better.} dxe5 $146 {[%emt 0:15:21]} ({Predecessor:} 13... Bxf3 14. Qxf3 Ne6 15. Rad1 Nxf4 16. Qxf4 dxe5 17. dxe5 Qb8 18. Rfe1 Qxb2 19. Qc4 Rad8 20. Rxd8 Rxd8 21. Qxc6 Bxe5 {0-1 (34) Ardeleanu,A (2407)-Kotronias,V (2574) Eforie Nord 2008}) 14. Bxe5 {[%emt 0:03:40]} Bxe5 {[%emt 0:00:19]} 15. hxg4 {[%emt 0:02:23]} Bg7 {[%emt 0:01:36]} 16. Qa4 {[%emt 0:05:04]} Ne6 {[%emt 0:05:29][%cal Re6d4]} 17. Rad1 {[%emt 0:03:10]} Qb6 {[%emt 0:05:19]} 18. d5 {[%emt 0:05:40]} cxd5 {[%emt 0:02:56]} ({Don't take} 18... Qxb2 19. dxe6 Qxc3 20. exf7+ Rxf7 21. Ng5 $16) 19. Nxd5 {[%emt 0:02:02]} Qb7 {[%emt 0:04:00]} 20. b4 {[%emt 0:06:04]} Rfd8 {[%emt 0:00:11]} 21. Qb3 {[%emt 0:02:22]} Rd7 {[%emt 0:06:54]} 22. Rd3 {[%emt 0:03:50]} (22. Ne3 $11 {keeps the balance.}) 22... Rad8 $1 $17 {[%emt 0:04:46][%cal Rd7d5]} 23. Rfd1 {[%emt 0:00:23][%cal Od5e7] [#]} Kf8 {[%emt 0:00:26]} (23... Nd4 $1 $17 {[%mdl 512]} 24. Nxd4 Qxd5) 24. g5 {[%emt 0:09:22]} Nc7 {[%emt 0:02:55]} (24... a5 $15) 25. Nxc7 $11 {[%emt 0:03:51]} Qxc7 {[%emt 0:00:08]} 26. Rxd7 Rxd7 {[%emt 0:00:03]} 27. Re1 {[%emt 0:04:50]} e5 {[%emt 0:00:40]} (27... e6 $11) 28. Qe3 {[%emt 0:00:57]} (28. b5 {keeps more tension.} Qc5 29. a4 f5 30. gxf6 Bxf6 31. Qe6) 28... Re7 {[%emt 0:00:29]} 29. Rc1 {[%emt 0:01:49]} Qd8 {[%emt 0:01:24]} 30. Qe4 {[%emt 0:02:04]} Rd7 {[%emt 0:01:03]} (30... h6 $11 {remains equal.}) 31. Re1 {[%emt 0:00:56] White is more active.} ({Reject} 31. Nxe5 $6 Rd1+ 32. Rxd1 Qxd1+ 33. Kh2 Qh5+ 34. Kg1 Qd1+ 35. Kh2 Qh5+ 36. Kg1 Qd1+ $11) (31. g3 $16) 31... Re7 {[%emt 0:00:09]} 32. a4 {[%emt 0:01:01]} h6 {[%emt 0:00:42]} 33. gxh6 {[%emt 0:01:03]} Bxh6 {[%emt 0:00:57]} 34. b5 {[%emt 0:02:22]} Bg7 {[%emt 0:00:23]} 35. Qb4 {[%emt 0:01:15]} Kg8 {[%emt 0:00:09] [#]} 36. a5 {[%emt 0:00:24]} (36. Nd4 $1 $14 Rd7 (36... Qc7 37. g3) 37. Nc6) 36... f5 $2 {[%emt 0:00:12][%mdl 8192]} (36... e4 $11 {and Black is okay.}) 37. Qb3+ {[%emt 0:00:18]} Kh8 {[%emt 0:00:28] [#]} 38. b6 $1 {[%emt 0:00:38]} (38. Ng5 Qd2 39. Qh3+ Kg8 40. Qh7+ Kf8 $18) 38... axb6 {[%emt 0:00:08] [#]} 39. axb6 {[%emt 0:00:19]} ({Not} 39. Qxb6 Qxb6 40. axb6 e4 $14) (39. Rd1 $1 $18 {[%cal Rd1d8]} Qe8 40. axb6) 39... Rb7 {[%emt 0:00:18]} 40. Nxe5 {[%emt 0:03:49]} Bxe5 {[%emt 0:00:08]} 41. Rxe5 {[%emt 0:00:09]} Rxb6 {[%emt 0:01:21][%mdl 4096] Endgame KQR-KQR} 42. Qa4 {[%emt 0:01:48] Threatening mate with Re8+.} Rb8 {[%emt 0:01:14]} 43. Re3 {[%emt 0:01:31]} Rb1+ {[%emt 0:01:04]} 44. Kh2 {[%emt 0:00:11] Hoping for Re8+.} Qd6+ {[%emt 0:00:02]} 45. f4 {[%emt 0:00:47] Qe8+ would kill now.} Rb8 {[%emt 0:00:20][%mdl 8192] Prevents Qe8+.} (45... Kg7 $11) 46. Rh3+ {[%emt 0:00:25] White mates.} Kg7 {[%emt 0:00:01]} 47. Qa1+ {[%emt 0:00:08]} Kf7 {[%emt 0:00:13]} 48. Rh7+ {[%emt 0:00:43]} Ke6 {[%emt 0:00:19]} 49. Qa2+ {[%emt 0:00:13]} Qd5 {[%emt 0:00:45]} 50. Re7+ {[%emt 0:00:08]} Kd6 {[%emt 0:00:02] [#]} 51. Rd7+ $3 {[%emt 0:00:06][%mdl 512] Weighted Error Value: White=0.28 (precise) /Black=0.51} 1-0

[Event "Chessable English Open-ch 2022"]
[Site "Kenilwoth"]
[Date "2022.05.21"]
[Round "5.1"]
[White "Jackson, James P"]
[Black "Hebden, Mark L"]
[Result "0-1"]
[ECO "C55"]
[WhiteElo "2400"]
[BlackElo "2452"]
[Annotator "TA"]
[PlyCount "104"]
[EventDate "2022.05.18"]
[EventType "swiss"]
[EventCountry "ENG"]
[SourceTitle "playchess.com"]
[Source "ChessBase"]
[SourceQuality "1"]
[TimeControl "5400+30"]

{[%evp 11,104,14,14,12,27,23,29,21,26,14,17,10,18,16,15,9,15,8,8,16,15,4,16,4,23,0,12,13,15,12,17,12,21,0,33,0,12,0,15,6,9,4,5,0,0,0,8,7,3,5,4,0,0,0,0,0,0,-94,-88,-83,-85,-133,-121,-152,-156,-149,-141,-141,-154,-143,-166,-159,-152,-205,-189,-386,-362,-367,-354,-376,-372,-370,-356,-341,-358,-504,-500,-425,-553,-634,-626,-838,-836,-2181,-1718]} 1. e4 {[%emt 0:00:03]} e5 {[%emt 0:00:24]} 2. Nf3 {[%emt 0:00:05]} Nc6 {[%emt 0:00:14]} 3. Bc4 {[%emt 0:00:06]} Nf6 {[%emt 0:01:02]} 4. d3 {[%emt 0:00:06]} Be7 {[%emt 0:00:14]} 5. O-O {[%emt 0:00:47]} O-O {[%emt 0:00:59]} 6. Nc3 {[%emt 0:00:32]} d6 {[%emt 0:00:27]} 7. a4 {[%emt 0:00:24] C55: Two Knights: 4 d3, 4 d4 exd4 5 e5 and Max Lange Attack.} Na5 {[%emt 0:06:09] 7...Be6 is a critical line.} 8. Ba2 {[%emt 0:00:07]} c5 {[%emt 0:00:08]} 9. Bg5 {[%emt 0:01:45] White has an edge.} Nc6 {[%emt 0:00:32]} 10. Bxf6 {[%emt 0:00:27]} Bxf6 {[%emt 0:00:22]} 11. Nd5 {[%emt 0:00:05]} g6 {[%emt 0:00:32] [#]} 12. Qd2 $146 {[%emt 0:03:07]} ({Predecessor:} 12. Kh1 Bg7 13. Rg1 Be6 14. Qd2 Kh8 15. Qg5 f6 16. Qh4 Qd7 17. g4 Nb4 18. Bb3 {0-1 (63) Halkias,S (2527)-Nisipeanu,L (2652) Terme Catez 2022}) 12... Bg7 {[%emt 0:00:26]} 13. Qg5 {[%emt 0:01:16]} Bd7 {[%emt 0:10:22]} 14. Qxd8 {[%emt 0:07:04]} Raxd8 {[%emt 0:00:39]} 15. c3 {[%emt 0:00:18]} Kh8 {[%emt 0:04:00]} 16. Nd2 {[%emt 0:17:51]} Bh6 {[%emt 0:04:34]} 17. Nc4 {[%emt 0:00:55]} Be6 {[%emt 0:03:04]} 18. Nc7 {[%emt 0:02:39]} Rd7 {[%emt 0:02:49]} 19. Nxe6 {[%emt 0:08:03]} fxe6 {[%emt 0:00:07]} 20. Ne3 {[%emt 0:00:18]} Re8 {[%emt 0:03:48]} 21. Ng4 {[%emt 0:08:57]} Bg7 {[%emt 0:00:26]} 22. Ne3 {[%emt 0:05:17]} Bh6 {[%emt 0:03:25]} 23. Ng4 {[%emt 0:00:10]} Bg5 {[%emt 0:01:48]} 24. h3 {[%emt 0:02:11]} d5 {[%emt 0:07:09]} 25. g3 {[%emt 0:01:46]} h5 {[%emt 0:01:32]} 26. Nh2 {[%emt 0:00:05]} d4 {[%emt 0:01:33]} 27. Nf3 {[%emt 0:00:50]} Bh6 {[%emt 0:03:13]} 28. Bc4 {[%emt 0:03:36]} a6 {[%emt 0:00:13] Inhibits Bb5.} 29. Kg2 {[%emt 0:01:08]} Kg7 {[%emt 0:01:06][%cal Bh8g7,Bg7f6,Bf6e7][%mdl 32]} 30. h4 {[%emt 0:01:51]} Kf6 {[%emt 0:00:33]} 31. a5 {[%emt 0:00:30]} Ke7 {[%emt 0:00:42]} 32. Ng1 {[%emt 0:08:32]} Rf8 {[%emt 0:01:59]} 33. Ne2 {[%emt 0:03:12]} Kd6 {[%emt 0:00:54]} 34. Ng1 {[%emt 0:07:56] [#]} (34. Ra4 $11) 34... g5 $1 $17 {[%emt 0:04:35] Black continues to play with concentration.} 35. hxg5 {[%emt 0:04:22]} Bxg5 {[%emt 0:00:03]} 36. Nh3 {[%emt 0:02:23]} ({Better is} 36. Nf3 Bd8 37. cxd4 cxd4 38. Bb3) 36... Bd2 {[%emt 0:01:49]} 37. Ra3 {[%emt 0:03:47] [#]} Rg7 $1 {[%emt 0:01:32]} 38. Rd1 {[%emt 0:00:46]} Bh6 {[%emt 0:00:08] Black is more active.} 39. Kh2 {[%emt 0:02:34]} h4 {[%emt 0:00:29] And now ...hxg3+ would win.} 40. Rg1 {[%emt 0:02:13]} hxg3+ {[%emt 0:04:54]} 41. Rxg3 {[%emt 0:00:28]} Rxg3 {[%emt 0:01:05]} 42. fxg3 {[%emt 0:00:40]} (42. Kxg3 $17 Rg8+ 43. Kf3) 42... Rf1 {[%emt 0:02:19]} 43. Rb3 $2 {[%emt 0:00:38]} (43. Kg2 {is a better defense.} Rb1 44. Ra2) 43... Nxa5 $19 {[%emt 0:00:29]} 44. Rb6+ {[%emt 0:00:05]} Kc7 {[%emt 0:00:10]} 45. Rxe6 {[%emt 0:00:06]} Nxc4 {[%emt 0:00:18]} 46. Rxh6 {[%emt 0:00:06]} Nxb2 {[%emt 0:00:42]} 47. cxd4 {[%emt 0:00:24]} cxd4 {[%emt 0:00:27][%cal Bc5d4,Bd4d3][%mdl 32] KRN-KRN} ({Not} 47... exd4 $2 48. Nf4 $19) ({Don't blunder} 47... Nxd3 $2 48. dxe5 c4 49. e6 $19) 48. g4 {[%emt 0:00:19]} (48. Kg2 $142 Rd1 49. g4 Rd2+ 50. Kf1) 48... Nxd3 {[%emt 0:00:34] Black is clearly winning.} 49. g5 {[%emt 0:01:17]} Rf8 {[%emt 0:00:28] Prevents Rh8.} 50. Kg3 {[%emt 0:00:27]} Nc5 {[%emt 0:02:06]} 51. g6 {[%emt 0:02:36]} Nxe4+ {[%emt 0:00:27]} 52. Kg4 {[%emt 0:00:36]} d3 {[%emt 0:01:10] Weighted Error Value: White=0.32/Black=0.02 (flawless)} 0-1

[Event "Chessable English Open-ch 2022"]
[Site "Kenilwoth"]
[Date "2022.05.21"]
[Round "5.2"]
[White "Willow, Jonah B"]
[Black "Harvey, Marcus R"]
[Result "1/2-1/2"]
[ECO "B12"]
[WhiteElo "2401"]
[BlackElo "2455"]
[Annotator "TA"]
[PlyCount "84"]
[EventDate "2022.05.18"]
[EventType "swiss"]
[EventCountry "ENG"]
[SourceTitle "playchess.com"]
[Source "ChessBase"]
[SourceQuality "1"]
[TimeControl "5400+30"]

{[%evp 9,84,9,31,23,20,0,10,21,38,-13,-10,-11,-15,-15,-11,-12,-14,-11,0,0,0,0,13,0,0,-9,-16,-27,-34,-33,-9,-19,0,0,0,0,0,-18,-11,-4,-9,-21,-19,-17,-11,-25,-13,-8,-15,-12,-8,-14,0,-3,-3,0,-8,-11,0,0,0,0,0,0,0,0,0,0,0,0,2,0,5,0,0,0,40]} 1. e4 {[%emt 0:00:01][%cal Be2e4,Be4e5][%mdl 32]} c6 {[%emt 0:03:56]} 2. d4 {[%emt 0:00:06]} d5 {[%emt 0:00:05]} 3. e5 {[%emt 0:00:04]} Bf5 {[%emt 0:00:04]} 4. Nd2 {[%emt 0:00:03]} e6 {[%emt 0:00:03]} 5. Nb3 {[%emt 0:00:04]} c5 {[%emt 0:00:02]} 6. dxc5 {[%emt 0:03:03] B12: Caro-Kann: Advance Variation.} Bxc5 {[%emt 0:00:15]} 7. Bb5+ {[%emt 0:00:23]} Nc6 {[%emt 0:00:04][%cal Og8e7]} 8. a4 {[%emt 0:00:03]} Bf8 {[%emt 0:02:28]} 9. Nd4 {[%emt 0:10:59]} (9. a5 $14 a6 10. Ba4 (10. Bxc6+ bxc6 11. Be3 Qc7 $11)) 9... Nge7 $11 {[%emt 0:05:06]} 10. Bg5 {[%emt 0:02:00]} Qc7 {[%emt 0:08:40]} 11. Bxe7 {[%emt 0:03:10] Active counter play!} Bxe7 {[%emt 0:00:28]} ({But not} 11... Kxe7 12. Nxf5+ exf5 13. f4 $14 (13. Qxd5 Qxe5+ 14. Qxe5+ Nxe5 $11)) 12. Nxf5 {[%emt 0:00:05]} exf5 {[%emt 0:00:05]} 13. Nf3 {[%emt 0:02:30] [#]} a6 $146 {[%emt 0:00:34]} ({Predecessor:} 13... Rd8 14. O-O O-O 15. Re1 Bc5 16. c3 a6 17. Bxc6 bxc6 18. Qd3 Qa7 19. Re2 g6 {½-½ (64) Sjugirov,S (2663)-Kovalev,D (2487) Chess.com INT 2020}) 14. Bxc6+ {[%emt 0:03:38]} bxc6 {[%emt 0:00:25]} 15. O-O {[%emt 0:00:05]} O-O {[%emt 0:01:10][%cal Bh8f8,Bf8d8,Bd8d5][%mdl 32]} 16. Qd3 {[%emt 0:05:38]} g6 {[%emt 1:15:05]} 17. c4 {[%emt 0:13:36]} Rfd8 {[%emt 0:00:00][%cal Od5d4]} 18. cxd5 {[%emt 0:08:43]} Rxd5 {[%emt 0:00:00]} 19. Qc4 {[%emt 0:02:56]} Qb7 {[%emt 0:00:00]} 20. Rac1 {[%emt 0:04:23]} Rc5 {[%emt 0:00:00]} 21. Qe2 {[%emt 0:00:14]} Rxc1 {[%emt 0:00:00]} 22. Rxc1 {[%emt 0:00:02]} c5 {[%emt 0:00:00]} 23. Rd1 {[%emt 0:15:33]} Qc6 {[%emt 0:00:00]} 24. b3 {[%emt 0:04:59]} Rb8 {[%emt 0:00:00]} 25. Qc2 {[%emt 0:06:11]} Qe6 {[%emt 0:00:00]} 26. Rd3 {[%emt 0:00:06][%cal Bd1d3,Bd3c3,Bc3c4][%mdl 32]} Rb4 {[%emt 0:00:00]} 27. Rc3 {[%emt 0:00:58] Prevents c4.} Qd5 {[%emt 0:00:00]} 28. h3 {[%emt 0:01:05] The position is equal.} h6 {[%emt 0:00:00]} 29. Rc4 {[%emt 0:00:49]} Rb8 {[%emt 0:00:00][%cal Bb4b8,Bb8d8,Bd8d3][%mdl 32]} 30. Qd2 {[%emt 0:01:13]} Qxd2 {[%emt 0:00:00]} 31. Nxd2 {[%emt 0:00:01][%mdl 4096] Endgame KRB-KRN} Rd8 {[%emt 0:00:00]} 32. Rc2 {[%emt 0:00:11]} Bg5 {[%emt 0:00:00]} 33. Nc4 {[%emt 0:02:07]} Rd3 {[%emt 0:00:00]} 34. Na5 {[%emt 0:00:42]} Rd1+ {[%emt 0:00:00]} 35. Kh2 {[%emt 0:00:01]} Rd5 {[%emt 0:00:00]} 36. g3 {[%emt 0:00:36]} Bd2 {[%emt 0:00:00]} (36... Rxe5 $2 37. f4 Rd5 38. fxg5 $18) 37. Nc6 {[%emt 0:00:49] [#] Strongly threatening Ne7+.} Kg7 {[%emt 0:00:00]} 38. Kg2 {[%emt 0:01:41]} a5 {[%emt 0:00:00]} 39. Ne7 {[%emt 0:01:17]} Rd7 {[%emt 0:00:00]} 40. Nc6 {[%emt 0:00:24]} Rd5 {[%emt 0:00:00]} 41. Ne7 {[%emt 0:00:18]} Rd7 {[%emt 0:00:00]} 42. Nc6 {[%emt 0:00:05]} Rd5 {[%emt 0:00:00] Weighted Error Value: White=0.06 (flawless) /Black=0.04 (flawless)} 1/2-1/2

[Event "Chessable English Open-ch 2022"]
[Site "Kenilwoth"]
[Date "2022.05.21"]
[Round "5.3"]
[White "Roberson, Peter T"]
[Black "Royal, Shreyas"]
[Result "1/2-1/2"]
[ECO "C95"]
[WhiteElo "2421"]
[BlackElo "2385"]
[Annotator "TA"]
[PlyCount "49"]
[EventDate "2022.05.18"]
[EventType "swiss"]
[EventCountry "ENG"]
[SourceTitle "playchess.com"]
[Source "ChessBase"]
[SourceQuality "1"]
[TimeControl "5400+30"]

{[%evp 30,49,25,14,25,23,16,29,50,-9,6,9,12,0,0,0,2,0,0,0,0,0]} 1. e4 {[%emt 0:00:03]} e5 {[%emt 0:00:04]} 2. Nf3 {[%emt 0:00:05]} Nc6 {[%emt 0:00:05]} 3. Bb5 {[%emt 0:00:05]} a6 {[%emt 0:00:04]} 4. Ba4 {[%emt 0:00:05]} Nf6 {[%emt 0:00:05]} 5. O-O {[%emt 0:00:07]} Be7 {[%emt 0:00:04]} 6. Re1 {[%emt 0:00:06]} b5 {[%emt 0:00:06]} 7. Bb3 {[%emt 0:00:05]} d6 {[%emt 0:00:05]} 8. c3 {[%emt 0:00:11]} O-O {[%emt 0:00:12]} 9. h3 {[%emt 0:00:06]} Nb8 {[%emt 0:00:04]} 10. d4 {[%emt 0:00:16]} Nbd7 {[%emt 0:00:06]} 11. Nbd2 {[%emt 0:00:13][%cal Bb1d2,Bd2f1,Bf1g3][%mdl 32]} Bb7 {[%emt 0:00:18]} 12. Bc2 {[%emt 0:01:03]} Re8 {[%emt 0:00:07]} 13. Nf1 {[%emt 0:01:19]} Bf8 {[%emt 0:00:14]} 14. Ng3 {[%emt 0:00:12]} g6 {[%emt 0:00:08]} 15. a4 {[%emt 0:01:22]} Bg7 {[%emt 0:00:36]} 16. Bd3 {[%emt 0:02:30]} d5 {[%emt 0:00:38] C95: Closed Ruy Lopez: Breyer Variation with 10 d4.} 17. Bg5 {[%emt 0:02:16] And now dxe5 would win.} dxe4 {[%emt 0:00:29]} 18. Bxe4 {[%emt 0:09:39]} c6 {[%emt 0:00:17] [#] White has an edge.} 19. Bc2 $146 {[%emt 0:23:58]} (19. Bxg6 $1 $14 hxg6 20. dxe5) ({Predecessor:} 19. dxe5 Nxe5 20. Qxd8 Raxd8 21. axb5 axb5 22. Nd4 h6 23. Bxf6 Bxf6 24. Nxb5 Nc4 25. Nd4 Bxd4 26. cxd4 Rxd4 {½-½ (38) Saric,I (2655)-Gagare,S (2481) Caleta 2020}) 19... Qc7 {[%emt 0:15:20] The position is equal.} (19... exd4 {keeps more tension.} 20. Qxd4 c5 21. Rxe8+ Qxe8 22. Qd6 Qf8) 20. Nxe5 {[%emt 0:16:28]} (20. dxe5 {feels hotter.} Nxe5 21. Rxe5 Rxe5 22. Bf4) 20... Nxe5 {[%emt 0:00:13]} 21. dxe5 {[%emt 0:01:38]} Rxe5 {[%emt 0:00:26]} 22. Rxe5 {[%emt 0:01:24]} Qxe5 {[%emt 0:00:19]} 23. Qd2 {[%emt 0:00:30]} Re8 {[%emt 0:07:29]} 24. Rd1 {[%emt 0:04:30]} c5 {[%emt 0:06:33]} 25. axb5 {[%emt 0:09:52] Weighted Error Value: White=0.15 (very precise) /Black=0.04 (flawless)} 1/2-1/2

[Event "Chessable English Open-ch 2022"]
[Site "Kenilwoth"]
[Date "2022.05.21"]
[Round "5.4"]
[White "Arkell, Keith C"]
[Black "Wadsworth, Matthew J"]
[Result "1-0"]
[ECO "D14"]
[WhiteElo "2367"]
[BlackElo "2432"]
[Annotator "TA"]
[PlyCount "129"]
[EventDate "2022.05.18"]
[EventType "swiss"]
[EventCountry "ENG"]
[SourceTitle "playchess.com"]
[Source "ChessBase"]
[SourceQuality "1"]
[TimeControl "5400+30"]

{[%evp 24,129,0,0,0,0,0,0,0,0,0,0,0,0,0,0,0,0,0,0,0,0,0,0,0,0,0,0,0,0,0,0,22,16,15,15,22,17,21,23,22,20,31,9,21,19,14,13,85,15,22,9,9,16,81,8,8,8,8,8,8,8,8,8,8,8,8,8,8,8,8,0,0,0,8,0,0,0,14,0,0,0,8,8,8,8,8,8,8,8,86,86,245,245,231,213,175,208,245,245,245,245,245,245,308,308,277,65]} 1. Nf3 {[%emt 0:00:09]} Nf6 {[%emt 0:00:09]} 2. c4 {[%emt 0:00:04]} c6 {[%emt 0:00:49]} 3. d4 {[%emt 0:00:56]} d5 {[%emt 0:00:18]} 4. cxd5 {[%emt 0:00:12]} cxd5 {[%emt 0:00:13]} 5. Nc3 {[%emt 0:00:06]} Nc6 {[%emt 0:01:12]} 6. Bf4 {[%emt 0:00:10]} Bf5 {[%emt 0:02:18]} 7. e3 {[%emt 0:00:06]} e6 {[%emt 0:00:18]} 8. Bd3 {[%emt 0:00:33]} Bxd3 {[%emt 0:01:41]} 9. Qxd3 {[%emt 0:00:05]} Bd6 {[%emt 0:03:13]} 10. Bxd6 {[%emt 0:00:06]} Qxd6 {[%emt 0:00:03]} 11. O-O {[%emt 0:00:06]} O-O {[%emt 0:00:44]} 12. Rfc1 {[%emt 0:00:14]} Rfc8 {[%emt 0:03:52]} 13. a3 {[%emt 0:05:38]} Na5 {[%emt 0:08:00] D14: Slav Defence: Exchange variation with ...Bf5.} 14. Rc2 {[%emt 1:29:05]} a6 {[%emt 0:28:27]} 15. Rac1 {[%emt 0:00:00][%cal Oc3d5] Strongly threatening Nxd5!} Qd8 {[%emt 0:02:32] [#] The position is equal.} 16. Ne2 $146 {[%emt 0:00:00]} ({Predecessor:} 16. Nd2 Nc4 17. Na4 Nd7 18. Nxc4 dxc4 19. Qd1 b5 20. Nc3 Qg5 21. Qf3 Nf6 22. h3 {½-½ (34) Maiorov,O (2390)-Stambulian,A (2408) Anapa 2012}) 16... Nc4 {[%emt 0:04:28]} 17. a4 {[%emt 0:00:00]} Nd6 {[%emt 0:06:37]} 18. Rxc8 {[%emt 0:00:00]} Rxc8 {[%emt 0:00:06]} 19. Rxc8 {[%emt 0:00:00]} Qxc8 {[%emt 0:00:07]} 20. Qc3 {[%emt 0:00:00]} Qc4 {[%emt 0:12:38]} 21. Qxc4 {[%emt 0:00:00]} dxc4 $11 {[%emt 0:00:05][%mdl 4096] Endgame KNN-KNN} 22. Nd2 {[%emt 0:00:00]} b5 {[%emt 0:02:18]} 23. axb5 {[%emt 0:00:00]} axb5 {[%emt 0:00:05]} 24. f3 {[%emt 0:00:00]} Nd5 {[%emt 0:09:50]} 25. e4 {[%emt 0:00:00]} Ne3 {[%emt 0:02:05]} 26. Nc3 {[%emt 0:00:00]} b4 {[%emt 0:00:46]} 27. Na2 {[%emt 0:00:00]} Nc2 {[%emt 0:03:19]} 28. e5 {[%emt 0:00:00]} Nb5 {[%emt 0:01:06]} 29. Nxc4 {[%emt 0:00:00]} (29. Kf2 {looks sharper.} b3 30. Nc1 c3 31. bxc3 b2 32. Nd3) 29... Nbxd4 {[%emt 0:00:04]} 30. Kf2 {[%emt 0:00:00]} g5 {[%emt 0:00:28]} 31. Nc1 {[%emt 0:00:00]} Kg7 {[%emt 0:00:43]} 32. Ne3 {[%emt 0:00:00]} Kg6 {[%emt 0:02:34]} 33. g4 {[%emt 0:00:00]} Na1 {[%emt 0:01:28]} 34. Nd3 {[%emt 0:00:40]} Nc6 $1 {[%emt 0:00:05]} 35. Kg3 {[%emt 0:02:26]} b3 {[%emt 0:01:39]} (35... h5 $11) 36. f4 {[%emt 0:00:47]} (36. Kf2 $16) 36... gxf4+ {[%emt 0:00:57]} 37. Kxf4 {[%emt 0:00:15]} Nc2 {[%emt 0:00:40]} 38. Nc4 {[%emt 0:01:18]} N2d4 {[%emt 0:01:12]} (38... N2b4 $11 39. Nc5 Nd5+ 40. Kg3 Ndb4) 39. h4 {[%emt 0:00:22]} (39. Nd2 $16) 39... h5 {[%emt 0:00:33]} 40. Nd6 {[%emt 0:03:20]} hxg4 {[%emt 0:00:50]} 41. Kxg4 {[%emt 0:00:06]} Kg7 {[%emt 0:01:12]} 42. h5 {[%emt 0:00:48]} Ne7 {[%emt 0:00:33]} 43. Kg5 {[%emt 0:01:27]} Nd5 {[%emt 0:01:00]} 44. h6+ {[%emt 0:00:10]} Kg8 {[%emt 0:00:01]} 45. Ne8 {[%emt 0:01:34] [#] Threatens to win with Nf6+.} Nf3+ {[%emt 0:00:50]} 46. Kg4 {[%emt 0:00:35]} Nd2 {[%emt 0:00:36]} 47. Kg5 {[%emt 0:01:32]} Ne4+ {[%emt 0:00:20]} 48. Kh5 {[%emt 0:00:21]} Ng3+ {[%emt 0:00:35]} 49. Kg4 {[%emt 0:00:08]} Ne4 {[%emt 0:00:06]} 50. Nd6 {[%emt 0:00:42]} Nd2 {[%emt 0:00:55]} 51. h7+ {[%emt 0:00:19]} Kxh7 {[%emt 0:00:11]} (51... Kh8 {seems wilder.} 52. Kg3 Ne3 53. Kf2 Ndc4) 52. Nxf7 {[%emt 0:00:06]} Kg8 {[%emt 0:00:28]} 53. Nd8 {[%emt 0:00:17]} Nc7 {[%emt 0:00:29]} 54. Kf4 {[%emt 0:00:41] Black must now prevent Ke3.} Kf8 {[%emt 0:00:34]} 55. Ke3 {[%emt 0:00:01]} Nc4+ {[%emt 0:00:51]} 56. Kd4 {[%emt 0:00:02]} Nd2 {[%emt 0:00:21]} (56... Na5 $1 $11) 57. Nc5 $16 {[%emt 0:00:30]} Ke7 {[%emt 0:00:45] [#] Loses the game.} (57... Nf3+ $16 {was called for.} 58. Ke4 Ng5+ 59. Kf4 Nh3+ 60. Kf3 Ng5+ 61. Kg4 Nf7) 58. Nc6+ $18 {[%emt 0:00:05]} Kf7 {[%emt 0:00:02]} 59. Kd3 {[%emt 0:00:29]} Nf3 {[%emt 0:00:19]} 60. Nxb3 {[%emt 0:00:03]} Kg6 {[%emt 0:00:29]} 61. Nbd4 {[%emt 0:00:14]} Ng5 {[%emt 0:01:10]} 62. b4 {[%emt 0:00:45]} Nf7 {[%emt 0:00:34]} 63. Ne7+ {[%emt 0:01:57]} Kg5 {[%emt 0:00:25]} 64. Ke4 {[%emt 0:00:19]} Kg4 {[%emt 0:00:30]} 65. Ne2 $2 {[%emt 0:02:17] Weighted Error Value: White=0.06 (flawless) /Black=0.14 (very precise)} (65. b5 $18 Nxb5 66. Nxb5 (66. Nxe6 Nxe5 67. Kxe5 Kh5 $11)) 1-0